fUST/lending_fUST_20250727
["ID","MTS","AMOUNT","RATE_DAILY","PERIOD"]
[375164890,1753565446056,-460.0,0.00020069,2]
[375164891,1753565446066,-460.0,0.00020069,2]
[375164892,1753565446076,-780.51,0.00020069,2]
[375164893,1753565446086,-460.0,0.00020069,2]
[375164894,1753565446096,-460.0,0.00020069,2]
[375164895,1753565446106,-460.0,0.00020071,2]
[375164896,1753565446115,-349.6591925,0.00020071,2]
[375164897,1753565446127,-460.0,0.00020071,2]
[375164898,1753565446136,-460.0,0.00020071,2]
[375164899,1753565446145,-460.0,0.00020071,2]
[375164900,1753565446157,-314.60891328,0.00020071,2]
[375164901,1753565446167,-460.0,0.00020071,2]
[375164902,1753565446178,-460.0,0.00020071,2]
[375164903,1753565446189,-355.30195347,0.00020071,2]
[375164904,1753565446200,-460.0,0.00020071,2]
[375164905,1753565446209,-460.0,0.00020071,2]
[375164906,1753565446219,-460.0,0.00020071,2]
[375164907,1753565446228,-460.0,0.00020071,2]
[375164908,1753565446238,-460.0,0.00020071,2]
[375164909,1753565446248,-460.0,0.00020071,2]
[375164910,1753565446257,-415.74493917,0.00020071,2]
[375164912,1753565446266,-151.0,0.00020071,2]
[375164913,1753565446275,-460.0,0.00020071,2]
[375164914,1753565446284,-460.0,0.00020071,2]
[375164915,1753565446296,-460.0,0.00020071,2]
[375164916,1753565446305,-467.95382513,0.00020071,2]
[375164917,1753565446315,-526.17,0.00020071,2]
[375164918,1753565446324,-460.0,0.00020071,2]
[375164919,1753565446334,-214.72,0.00020071,2]
[375164920,1753565446343,-460.0,0.00020071,2]
[375164921,1753565446352,-460.0,0.00020071,2]
[375164922,1753565446361,-460.0,0.00020071,2]
[375164923,1753565446373,-46.95254101,0.00020071,2]
[375164924,1753565446385,-413.04745899,0.00020071,2]
[375164925,1753565446395,-460.0,0.00020071,2]
[375164926,1753565446404,-460.0,0.00020071,2]
[375164927,1753565446414,-460.0,0.00020071,2]
[375164928,1753565446423,-460.0,0.00020071,2]
[375164929,1753565446432,-460.0,0.00020071,2]
[375164930,1753565446442,-460.0,0.00020071,2]
[375164931,1753565446451,-460.0,0.00020071,2]
[375164932,1753565446460,-460.0,0.00020071,2]
[375164933,1753565446469,-460.0,0.00020071,2]
[375164934,1753565446479,-500.8,0.00020071,2]
[375164935,1753565446489,-460.0,0.00020071,2]
[375164936,1753565446498,-460.0,0.00020071,2]
[375164937,1753565446507,-460.0,0.00020071,2]
[375164938,1753565446517,-625.59,0.00020071,2]
[375164939,1753565446527,-460.0,0.00020071,2]
[375164940,1753565446537,-460.0,0.00020071,2]
[375164941,1753565446546,-460.0,0.00020071,2]
[375164942,1753565446555,-460.0,0.00020071,2]
[375164943,1753565446565,-460.0,0.00020071,2]
[375164944,1753565446574,-460.0,0.00020071,2]
[375164945,1753565446583,-460.0,0.00020071,2]
[375164946,1753565446592,-701.72,0.00020071,2]
[375164947,1753565446602,-460.0,0.00020071,2]
[375164948,1753565446612,-460.0,0.00020071,2]
[375164949,1753565446621,-945.46,0.00020071,2]
[375164950,1753565446631,-460.0,0.00020071,2]
[375164951,1753565446640,-151.0,0.000201,2]
[375164952,1753565446650,-287.8657698,0.000201,2]
[375164953,1753565446662,-183.149,0.000201,2]
[375164954,1753565446672,-150.0,0.000201,2]
[375164955,1753565446682,-736.1161986,0.000201,2]
[375164956,1753565446694,-859.1711518,0.000201,2]
[375164957,1753565446705,-429.9056391,0.000201,2]
[375164958,1753565446714,-1130.04251781,0.00020107,2]
[375164959,1753565446724,-460.0,0.00020169,2]
[375164960,1753565446733,-460.0,0.00020169,2]
[375164961,1753565446743,-522.3,0.00020169,2]
[375164962,1753565446752,-460.0,0.00020169,2]
[375164963,1753565446762,-460.0,0.00020169,2]
[375164964,1753565446772,-460.0,0.00020169,2]
[375164965,1753565446783,-460.0,0.00020169,2]
[375164966,1753565446792,-151.0,0.00020169,2]
[375164967,1753565446803,-162.344387,0.00020169,2]
[375164968,1753565446814,-162.344387,0.00020169,2]
[375164969,1753565446824,-460.0,0.00020169,2]
[375164970,1753565446834,-460.0,0.00020169,2]
[375164971,1753565446843,-460.0,0.00020169,2]
[375164972,1753565446853,-460.0,0.00020169,2]
[375164973,1753565446863,-460.0,0.00020169,2]
[375164974,1753565446873,-460.0,0.00020169,2]
[375164975,1753565446883,-460.0,0.00020169,2]
[375164976,1753565446894,-460.0,0.00020169,2]
[375164977,1753565446903,-325.23044645,0.00020169,2]
[375164978,1753565446916,-134.76955355,0.00020169,2]
[375164979,1753565446927,-153.347775,0.0002017,2]
[375164980,1753565446938,-151.0,0.0002017,2]
[375164981,1753565446947,-460.0,0.0002017,2]
[375164982,1753565446957,-158.991172,0.0002017,2]
[375164983,1753565446966,-460.0,0.0002017,2]
[375164984,1753565446976,-151.0,0.0002017,2]
[375164985,1753565446985,-460.0,0.0002017,2]
[375164986,1753565446995,-460.0,0.0002017,2]
[375164987,1753565447008,-151.0,0.0002017,2]
[375164988,1753565447018,-460.0,0.0002017,2]
[375164989,1753565447027,-460.0,0.0002017,2]
[375164990,1753565447037,-460.0,0.0002017,2]
[375164991,1753565447046,-460.0,0.0002017,2]
[375164992,1753565447056,-460.0,0.0002017,2]
[375164993,1753565447066,-3.65869745,0.0002017,2]
[375164994,1753565447078,-456.34130255,0.0002017,2]
[375164995,1753565447087,-597.15,0.0002017,2]
[375164996,1753565447097,-331.02,0.0002017,2]
[375164997,1753565447106,-460.0,0.0002017,2]
[375164998,1753565447209,-228.143538,0.0002017,2]
[375164999,1753565447220,-460.0,0.0002017,2]
[375165000,1753565447229,-493.83,0.0002017,2]
[375165001,1753565447239,-460.0,0.0002017,2]
[375165002,1753565447253,-460.0,0.0002017,2]
[375165003,1753565447262,-460.0,0.0002017,2]
[375165004,1753565447272,-460.0,0.0002017,2]
[375165005,1753565447286,-460.0,0.0002017,2]
[375165006,1753565447299,-460.0,0.0002017,2]
[375165007,1753565447308,-460.0,0.0002017,2]
[375165008,1753565447318,-460.0,0.0002017,2]
[375165009,1753565447327,-460.0,0.0002017,2]
[375165010,1753565447338,-151.0,0.00020171,2]
[375165011,1753565447348,-151.0,0.00020171,2]
[375165012,1753565447357,-400.0,0.00020171,3]
[375165013,1753565447367,-460.0,0.00020171,2]
[375165014,1753565447377,-460.0,0.00020171,2]
[375165015,1753565447387,-460.0,0.00020171,2]
[375165016,1753565447396,-460.0,0.00020171,2]
[375165017,1753565447406,-460.0,0.00020171,2]
[375165018,1753565447415,-460.0,0.00020171,2]
[375165019,1753565447424,-375.04409534,0.00020171,2]
[375165020,1753565447434,-460.0,0.00020171,2]
[375165021,1753565447444,-180.827933,0.00020171,2]
[375165022,1753565447453,-460.0,0.00020171,2]
[375165023,1753565447463,-460.0,0.00020171,2]
[375165024,1753565447472,-407.04183614,0.00020171,2]
[375165025,1753565447481,-460.0,0.00020171,2]
[375165026,1753565447491,-175.21622718,0.00020171,2]
[375165027,1753565447500,-1867.58,0.00020171,2]
[375165028,1753565447510,-221.895757,0.00020187,2]
[375165029,1753565447519,-454.03136786,0.00020201,2]
[375165030,1753565447529,-162.344387,0.00020201,2]
[375165031,1753565447539,-162.344387,0.00020201,2]
[375165032,1753565447548,-460.0,0.00020267,2]
[375165033,1753565447558,-460.0,0.00020267,2]
[375165034,1753565447567,-460.0,0.00020267,2]
[375165035,1753565447576,-460.0,0.00020267,2]
[375165036,1753565447586,-460.0,0.00020267,2]
[375165037,1753565447595,-460.0,0.00020267,2]
[375165038,1753565447605,-217.12036078,0.00020267,2]
[375165039,1753565447614,-460.0,0.00020267,2]
[375165040,1753565447624,-460.0,0.00020267,2]
[375165041,1753565447633,-460.0,0.00020267,2]
[375165042,1753565447643,-460.0,0.00020267,2]
[375165043,1753565447652,-460.0,0.00020267,2]
[375165044,1753565447661,-460.0,0.00020267,2]
[375165045,1753565447671,-472.46067296,0.00020267,2]
[375165046,1753565447680,-460.0,0.00020267,2]
[375165047,1753565447690,-460.0,0.00020267,2]
[375165048,1753565447700,-460.0,0.00020267,2]
[375165049,1753565447710,-460.0,0.00020267,2]
[375165050,1753565447719,-460.0,0.00020267,2]
[375165051,1753565447728,-460.0,0.00020267,2]
[375165052,1753565447737,-460.0,0.00020267,2]
[375165053,1753565447747,-405.32236307,0.00020267,2]
[375165054,1753565447757,-460.0,0.00020267,2]
[375165055,1753565447766,-460.0,0.00020267,2]
[375165056,1753565447776,-460.0,0.00020267,2]
[375165057,1753565447786,-460.0,0.00020267,2]
[375165058,1753565447795,-460.0,0.00020267,2]
[375165059,1753565447805,-460.0,0.00020267,2]
[375165060,1753565447815,-286.37012778,0.00020267,2]
[375165061,1753565447827,-173.62987222,0.00020267,2]
[375165062,1753565447836,-460.0,0.00020267,2]
[375165063,1753565447845,-460.0,0.00020267,2]
[375165064,1753565447855,-460.0,0.00020267,2]
[375165065,1753565447864,-460.0,0.00020267,2]
[375165066,1753565447875,-460.0,0.00020267,2]
[375165067,1753565447885,-151.790869,0.0002027,2]
[375165068,1753565447895,-151.0,0.0002027,2]
[375165069,1753565447905,-151.0,0.0002027,2]
[375165070,1753565447915,-460.0,0.0002027,2]
[375165071,1753565447925,-665.41,0.0002027,2]
[375165072,1753565447934,-304.40250892,0.0002027,2]
[375165073,1753565448094,-676.48139264,0.00019753,2]
[375165074,1753565448104,-632.57,0.00019788,3]
[375165075,1753565448114,-429.9056391,0.000201,2]
[375165076,1753565448124,-509.23749108,0.0002027,2]
[375165077,1753565448133,-653.98,0.0002027,2]
[375165078,1753565448143,-460.0,0.0002027,2]
[375165079,1753565448152,-460.0,0.0002027,2]
[375165080,1753565448162,-460.0,0.0002027,2]
[375165081,1753565448172,-701.63,0.0002027,2]
[375165082,1753565448182,-460.0,0.0002027,2]
[375165083,1753565448191,-460.0,0.0002027,2]
[375165084,1753565448201,-505.58,0.0002027,2]
[375165085,1753565448210,-249.21709,0.00020271,2]
[375165086,1753565448220,-460.0,0.00020271,2]
[375165087,1753565448229,-151.0,0.00020271,2]
[375165088,1753565448239,-151.68439843,0.00020271,2]
[375165089,1753565448251,-82.52051578,0.00020271,2]
[375165090,1753565448260,-460.0,0.00020271,2]
[375165091,1753565448270,-460.0,0.00020271,2]
[375165092,1753565448280,-500.0,0.00020273,2]
[375165093,1753565448289,-500.0,0.00020273,2]
[375165094,1753565448308,-151.0,0.00020273,2]
[375165095,1753565448318,-151.0,0.00020273,2]
[375165096,1753565448328,-633.69002538,0.00020273,2]
[375165097,1753565448339,-500.0,0.00020273,2]
[375165098,1753565448348,-151.0,0.00020273,2]
[375165099,1753565448358,-151.0,0.00020273,2]
[375165100,1753565448367,-151.0,0.00020273,2]
[375165101,1753565448379,-151.0,0.00020273,2]
[375165102,1753565448389,-289.4233495,0.00020273,2]
[375165103,1753565448398,-151.0,0.00020273,2]
[375165104,1753565448407,-151.0,0.00020273,2]
[375165105,1753565448417,-321.97958157,0.00020303,2]
[375165106,1753565448427,-476.98041219,0.00020304,2]
[375165107,1753565448436,-12629.83479014,0.00020304,2]
[375165108,1753565448446,-526.41699184,0.00020305,2]
[375165109,1753565448455,-160.0,0.00020305,2]
[375165110,1753565448464,-231.25662632,0.00020305,2]
[375165111,1753565448473,-160.0,0.00020305,2]
[375165112,1753565448483,-215.9757969,0.00020305,2]
[375165113,1753565448494,-160.0,0.00020305,2]
[375165114,1753565448503,-147.94600796,0.00020305,2]
[375165115,1753565448515,-66.85481824,0.00020305,2]
[375165116,1753565448526,-160.0,0.00020305,2]
[375165117,1753565448535,-160.0,0.00020305,2]
[375165118,1753565448544,-160.0,0.00020305,2]
[375165119,1753565448553,-1130.04251781,0.00020314,3]
[375165120,1753565448563,-484.22923534,0.00020333,2]
[375165121,1753565448572,-460.0,0.00020333,2]
[375165122,1753565448581,-1153.54,0.00020333,2]
[375165123,1753565448591,-460.0,0.00020333,2]
[375165124,1753565448601,-1212.82,0.00020333,2]
[375165125,1753565448610,-460.0,0.00020333,2]
[375165126,1753565448620,-460.0,0.00020333,2]
[375165127,1753565448630,-583.63,0.00020333,2]
[375165128,1753565448639,-275.92604295,0.00020333,2]
[375165129,1753565448655,-676.48139263,0.00020097,2]
[375165130,1753565448664,-184.07395705,0.00020333,2]
[375165131,1753565448673,-460.0,0.00020333,2]
[375165132,1753565448683,-460.0,0.00020333,2]
[375165133,1753565448692,-953.85,0.00020333,2]
[375165134,1753565448702,-23.79962418,0.00020333,2]
[375165135,1753565448713,-436.20037582,0.00020333,2]
[375165136,1753565448723,-460.0,0.00020333,2]
[375165137,1753565448732,-460.0,0.00020333,2]
[375165138,1753565448741,-460.0,0.00020333,2]
[375165139,1753565448751,-460.0,0.00020333,2]
[375165140,1753565448760,-460.0,0.00020333,2]
[375165141,1753565448770,-151.0,0.00020336,2]
[375165142,1753565448779,-460.0,0.00020343,2]
[375165143,1753565448789,-532.5533407,0.00020343,2]
[375165144,1753565448798,-460.0,0.00020343,2]
[375165145,1753565448807,-460.0,0.00020343,2]
[375165146,1753565448816,-460.0,0.00020343,2]
[375165147,1753565448826,-460.0,0.00020343,2]
[375165148,1753565448835,-460.0,0.00020343,2]
[375165149,1753565448844,-460.0,0.00020343,2]
[375165150,1753565448854,-2822.26,0.00020343,2]
[375165151,1753565448863,-460.0,0.00020343,2]
[375165152,1753565448873,-460.0,0.00020343,2]
[375165153,1753565448882,-460.0,0.00020343,2]
[375165154,1753565448892,-460.0,0.00020343,2]
[375165155,1753565448902,-780.51,0.00020343,2]
[375165156,1753565448912,-407.97,0.00020343,2]
[375165157,1753565448921,-460.0,0.00020343,2]
[375165158,1753565448931,-460.0,0.00020345,2]
[375165159,1753565448941,-151.0,0.00020345,2]
[375165160,1753565448950,-584.93,0.00020345,2]
[375165161,1753565448959,-460.0,0.00020345,2]
[375165162,1753565448969,-244.94,0.00020345,2]
[375165163,1753565448979,-151.0,0.00020345,2]
[375165164,1753565448989,-162.344387,0.00020345,2]
[375165165,1753565448999,-162.344387,0.00020345,2]
[375165166,1753565449010,-460.0,0.00020345,2]
[375165167,1753565449019,-460.0,0.00020345,2]
[375165168,1753565449029,-526.17,0.00020345,2]
[375165169,1753565449113,-460.0,0.00020345,2]
[375165170,1753565449124,-460.0,0.00020345,2]
[375165171,1753565449134,-460.0,0.00020345,2]
[375165172,1753565449143,-460.0,0.00020345,2]
[375165173,1753565449153,-460.0,0.00020345,2]
[375165174,1753565449162,-460.0,0.00020345,2]
[375165175,1753565449173,-462.71843929,0.00020345,2]
[375165176,1753565449182,-460.0,0.00020345,2]
[375165177,1753565449192,-460.0,0.00020345,2]
[375165178,1753565449201,-460.0,0.00020345,2]
[375165179,1753565449211,-460.0,0.00020345,2]
[375165180,1753565449221,-460.0,0.00020345,2]
[375165181,1753565449230,-625.59,0.00020345,2]
[375165182,1753565449240,-460.0,0.00020345,2]
[375165183,1753565449249,-460.0,0.00020345,2]
[375165184,1753565449259,-460.0,0.00020345,2]
[375165185,1753565449268,-583.1,0.00020345,2]
[375165186,1753565449279,-701.72,0.00020345,2]
[375165187,1753565449290,-460.0,0.00020345,2]
[375165188,1753565449304,-460.0,0.00020345,2]
[375165189,1753565449314,-945.46,0.00020345,2]
[375165190,1753565449323,-460.0,0.00020345,2]
[375165191,1753565449333,-213.78978257,0.00020368,2]
[375165192,1753565449344,-240.563478,0.00020443,2]
[375165193,1753565449355,-522.3,0.00020443,2]
[375165194,1753565449364,-460.0,0.00020443,2]
[375165195,1753565449376,-460.0,0.00020443,2]
[375165196,1753565449385,-460.0,0.00020443,2]
[375165197,1753565449394,-460.0,0.00020443,2]
[375165198,1753565449404,-460.0,0.00020443,2]
[375165199,1753565449413,-464.35056706,0.00020443,2]
[375165200,1753565449423,-460.0,0.00020443,2]
[375165201,1753565449433,-460.0,0.00020443,2]
[375165202,1753565449443,-460.0,0.00020443,2]
[375165203,1753565449453,-460.0,0.00020443,2]
[375165204,1753565449463,-460.0,0.00020443,2]
[375165205,1753565449473,-460.0,0.00020443,2]
[375165206,1753565449483,-151.0,0.00020444,2]
[375165207,1753565449493,-460.0,0.00020444,2]
[375165208,1753565449503,-460.0,0.00020444,2]
[375165209,1753565449512,-406.90041642,0.00020444,2]
[375165210,1753565449522,-460.0,0.00020444,2]
[375165211,1753565449531,-460.0,0.00020444,2]
[375165212,1753565449541,-460.0,0.00020444,2]
[375165213,1753565449552,-460.0,0.00020444,2]
[375165214,1753565449562,-460.0,0.00020444,2]
[375165215,1753565449572,-460.0,0.00020444,2]
[375165216,1753565449581,-597.15,0.00020444,2]
[375165217,1753565449591,-125.50461671,0.00020444,2]
[375165220,1753565862830,309.36,0.0001951,2]
[375165222,1753565932259,199.706181,0.00013699,2]
[375165226,1753566448101,-197.87053434,0.00019573,2]
[375165227,1753566448125,-150.0,0.00019589,2]
[375165228,1753566448145,-367.10208047,0.00019673,2]
[375165230,1753566599580,23419.02676613,0.00018692,2]
[375165231,1753566599605,1480.97323387,0.00018692,2]
[375165261,1753566631765,-150.0,0.00019578,2]
[375165262,1753566631775,-409.55328981,0.00019594,2]
[375165263,1753566631784,-287.57565052,0.00019673,2]
[375165265,1753566631793,-151.0,0.00019683,2]
[375165267,1753566631814,-460.0,0.00019693,2]
[375165270,1753566631824,-243.41165466,0.00019693,2]
[375165367,1753566637731,-56.58834534,0.00019693,2]
[375165368,1753566637741,-300.0,0.00019693,2]
[375165369,1753566637751,-1200.0,0.00019693,2]
[375165370,1753566637761,-300.0,0.00019693,2]
[375165371,1753566637770,-178.26838523,0.00019693,2]
[375165372,1753566637780,-460.0,0.00019693,2]
[375165373,1753566637790,-460.0,0.00019693,2]
[375165374,1753566637799,-500.0,0.00019693,2]
[375165375,1753566637809,-500.0,0.00019693,2]
[375165376,1753566637818,-500.0,0.00019693,2]
[375165377,1753566637827,-500.0,0.00019693,2]
[375165378,1753566637837,-156.3750634,0.00019693,2]
[375165379,1753566637847,-500.0,0.00019693,2]
[375165380,1753566637856,-500.0,0.00019693,2]
[375165381,1753566637866,-343.30195142,0.00019693,2]
[375165382,1753566637876,-500.0,0.00019693,2]
[375165383,1753566637885,-500.0,0.00019693,2]
[375165384,1753566637895,-500.0,0.00019693,2]
[375165385,1753566637904,-500.0,0.00019693,2]
[375165386,1753566637913,-318.9998936,0.00019693,2]
[375165387,1753566637923,-500.0,0.00019693,2]
[375165388,1753566637932,-500.0,0.00019693,2]
[375165389,1753566637942,-185.1313959,0.00019693,2]
[375165390,1753566637955,-500.0,0.00019693,2]
[375165391,1753566637965,-500.0,0.00019693,2]
[375165392,1753566637974,-3937.69741278,0.00019694,2]
[375165429,1753566639823,-714.78080813,0.00019694,2]
[375165432,1753566639835,-881.05,0.00019694,2]
[375165434,1753566639847,-2038.05364534,0.00019694,2]
[375165436,1753566639859,-2205.69849881,0.00019694,2]
[375165441,1753566639896,-2162.07713982,0.00019694,2]
[375165443,1753566639908,-3567.50906117,0.00019694,2]
[375165446,1753566639920,-1312.15337723,0.00019694,2]
[375165541,1753566642875,-460.0,0.00019693,2]
[375165542,1753566642885,-126.54086492,0.00019694,2]
[375165543,1753566642934,-6446.61386025,0.00019694,2]
[375165546,1753566646001,-460.0,0.00019694,2]
[375165547,1753566646011,-148.98493076,0.00019694,2]
[375165548,1753566646023,-311.01506924,0.00019694,2]
[375165549,1753566646033,-460.0,0.00019694,2]
[375165550,1753566646043,-164.52134286,0.00019694,2]
[375165551,1753566646055,-255.22710347,0.00019694,2]
[375165552,1753566646065,-460.0,0.00019694,2]
[375165553,1753566646074,-460.0,0.00019694,2]
[375165554,1753566646084,-460.0,0.00019694,2]
[375165555,1753566646094,-82.83887119,0.00019694,2]
[375165556,1753566646106,-377.16112881,0.00019694,2]
[375165557,1753566646115,-460.0,0.00019694,2]
[375165558,1753566646125,-460.0,0.00019694,2]
[375165559,1753566646134,-460.0,0.00019694,2]
[375165560,1753566646144,-460.0,0.00019694,2]
[375165561,1753566646153,-460.0,0.00019694,2]
[375165562,1753566646163,-460.0,0.00019694,2]
[375165563,1753566646173,-460.0,0.00019694,2]
[375165564,1753566646183,-460.0,0.00019694,2]
[375165565,1753566646193,-876.1,0.00019694,2]
[375165566,1753566646203,-460.0,0.00019694,2]
[375165567,1753566646212,-460.0,0.00019694,2]
[375165568,1753566646222,-485.39,0.00019694,2]
[375165569,1753566646232,-460.0,0.00019694,2]
[375165570,1753566646242,-393.29310321,0.00019694,2]
[375165571,1753566646252,-460.0,0.00019694,2]
[375165572,1753566646261,-1009.34,0.00019694,2]
[375165573,1753566646271,-238.51968945,0.00019695,2]
[375165574,1753566646280,-460.0,0.00019695,2]
[375165575,1753566646290,-460.0,0.00019695,2]
[375165576,1753566646300,-460.0,0.00019695,2]
[375165577,1753566646309,-495.74,0.00019695,2]
[375165578,1753566646319,-460.0,0.00019695,2]
[375165579,1753566646329,-165.75607853,0.00019695,2]
[375165580,1753566646341,-294.24392147,0.00019695,2]
[375165581,1753566646350,-460.4,0.00019695,2]
[375165582,1753566646360,-460.0,0.00019695,2]
[375165583,1753566646369,-1061.21,0.00019695,2]
[375165584,1753566646379,-460.0,0.00019695,2]
[375165585,1753566646388,-312.9,0.00019695,2]
[375165586,1753566646398,-460.0,0.00019695,2]
[375165587,1753566646407,-510.67,0.00019695,2]
[375165588,1753566646418,-460.0,0.00019695,2]
[375165589,1753566646427,-460.0,0.00019695,2]
[375165590,1753566646436,-218.3646845,0.00019695,2]
[375165591,1753566646446,-51.62308962,0.00019695,2]
[375165592,1753566646458,-408.37691038,0.00019695,2]
[375165593,1753566646467,-396.80731749,0.00019695,2]
[375165594,1753566646478,-63.19268251,0.00019695,2]
[375165595,1753566646488,-460.0,0.00019695,2]
[375165596,1753566646497,-460.0,0.00019695,2]
[375165597,1753566646506,-599.25,0.00019695,2]
[375165598,1753566646516,-460.0,0.00019695,2]
[375165599,1753566646526,-460.0,0.00019695,2]
[375165600,1753566646536,-460.0,0.00019695,2]
[375165601,1753566646547,-460.0,0.00019695,2]
[375165602,1753566646559,-460.0,0.00019695,2]
[375165603,1753566646570,-460.0,0.00019695,2]
[375165604,1753566646580,-460.0,0.00019695,2]
[375165605,1753566646593,-460.0,0.00019695,2]
[375165606,1753566646603,-460.0,0.00019695,2]
[375165607,1753566646613,-460.0,0.00019696,2]
[375165608,1753566646622,-500.0,0.00019696,2]
[375165609,1753566646632,-460.0,0.00019696,2]
[375165610,1753566646642,-460.0,0.00019696,2]
[375165611,1753566646653,-460.0,0.00019696,2]
[375165612,1753566646663,-460.0,0.00019696,2]
[375165613,1753566646675,-460.0,0.00019696,2]
[375165614,1753566646685,-460.0,0.00019696,2]
[375165615,1753566646695,-460.0,0.00019696,2]
[375165616,1753566646709,-460.0,0.00019696,2]
[375165617,1753566646718,-460.0,0.00019696,2]
[375165618,1753566646728,-244.6954513,0.00019696,2]
[375165619,1753566646737,-460.0,0.00019696,2]
[375165620,1753566646747,-460.0,0.00019696,2]
[375165621,1753566646757,-460.0,0.00019696,2]
[375165622,1753566646767,-1346.05051598,0.00019696,2]
[375165624,1753566881363,353.33756012,0.000189,2]
[375165626,1753566962588,189.720871,0.00013699,2]
[375165627,1753567190384,235.55837341,0.000189,2]
[375165628,1753567392780,165.95302815,0.00019216,2]
[375165629,1753567491929,157.03891561,0.000189,2]
[375165630,1753567566723,9478.9999663,0.00018685,2]
[375165631,1753567640239,-300.0,0.00019672,2]
[375165632,1753567640262,-226.19166042,0.00019672,2]
[375165633,1753567700641,500.0,0.0001944,2]
[375165643,1753567786379,1000.0,0.00019275,5]
[375165644,1753567793616,150.0,0.000189,2]
[375165658,1753567832067,-358.35912861,0.00019585,2]
[375165659,1753567832077,-257.0,0.00019672,2]
[375165660,1753567832087,-1200.0,0.00019672,2]
[375165661,1753567832096,-543.98171017,0.00019673,2]
[375165662,1753567832106,-500.0,0.00019673,2]
[375165663,1753567832117,-500.0,0.00019673,2]
[375165664,1753567832127,-500.0,0.00019673,2]
[375165665,1753567832136,-504.30457904,0.00019673,2]
[375165666,1753567832146,-967.29,0.00019684,2]
[375165667,1753567832160,-460.0,0.00019684,2]
[375165668,1753567832171,-1017.0,0.00019684,2]
[375165669,1753567832182,-460.0,0.00019684,2]
[375165670,1753567832191,-489.4,0.00019684,2]
[375165671,1753567832202,-460.0,0.00019684,2]
[375165672,1753567832212,-460.0,0.00019684,2]
[375165673,1753567832223,-460.0,0.00019684,2]
[375165674,1753567832235,-839.6,0.00019684,2]
[375165675,1753567832245,-460.0,0.00019684,2]
[375165676,1753567832254,-460.0,0.00019684,2]
[375165677,1753567832265,-460.0,0.00019685,2]
[375165678,1753567832275,-165.91232162,0.00019685,2]
[375165679,1753567832285,-500.0,0.00019685,2]
[375165680,1753567832295,-460.0,0.00019685,2]
[375165681,1753567832305,-259.50358371,0.00019685,2]
[375165682,1753567832315,-460.0,0.00019685,2]
[375165683,1753567832325,-460.0,0.00019685,2]
[375165684,1753567832335,-156.23055168,0.00019685,2]
[375165704,1753567837811,-290.75999998,0.00019684,2]
[375165705,1753567837927,-169.24000002,0.00019684,2]
[375165706,1753567837937,-460.0,0.00019684,2]
[375165707,1753567837947,-303.76944832,0.00019685,2]
[375165708,1753567837957,-2413.39,0.00019685,2]
[375165709,1753567837967,-460.0,0.00019685,2]
[375165710,1753567837976,-460.0,0.00019685,2]
[375165711,1753567837986,-460.0,0.00019685,2]
[375165712,1753567837995,-517.75,0.00019685,2]